bitfinex/quotes_SOLUSD_20240912
["timestamp","ask_amount","ask_price","bid_price","bid_amount"]
[1726121645255,6.6372,135.6,135.56,6.6391]
[1726121646172,6.6367,135.61,135.56,6.6391]
[1726121646967,35.57999943,135.65,135.56,14.63602756]
[1726121646968,6.6363,135.62,135.56,14.63602756]
[1726121647177,6.6358,135.63,135.58,6.638]
[1726121647547,6.6358,135.63,135.58,13.2645]
[1726121648175,6.6362,135.62,135.58,6.6265]
[1726121669893,6.6366,135.61,135.58,6.6265]
[1726121672067,6.6363,135.62,135.58,6.6265]
[1726121673270,6.6358,135.63,135.58,31.28624177]
[1726121673678,6.6358,135.63,135.58,29.8113]
[1726121677193,16.5861,135.66,135.58,23.1733]
[1726121677194,6.6372,135.6,135.58,23.1733]
[1726121677500,6.6362,135.62,135.58,23.1733]
[1726121678489,6.6367,135.61,135.58,23.1733]
[1726121678672,23.776884,135.63,135.55,13.2076479]
[1726121678870,6.6372,135.6,135.55,13.2076479]
[1726121679095,6.6365,135.62,135.57,6.6385]
[1726121679270,33.11184379,135.65,135.57,6.6385]
[1726121679473,6.6362,135.62,135.57,6.6385]
[1726121686201,6.6372,135.6,135.55,29.8058479]
[1726121686587,6.6372,135.6,135.56,6.639]
[1726121687411,6.6367,135.61,135.56,6.639]
[1726121689315,6.6362,135.62,135.57,6.6386]
[1726121690488,6.6357,135.63,135.58,6.6378]
[1726121692499,6.6357,135.63,135.58,22.58]
[1726121693410,16.5861,135.66,135.59,12.9166]
[1726121693411,6.6352,135.64,135.59,12.9166]
[1726121700523,6.6358,135.63,135.59,6.2792]
[1726121700707,6.6364,135.62,135.59,6.2792]
[1726121700907,16.5856,135.66,135.58,15.9422]
[1726121700908,6.6368,135.61,135.58,15.9422]
[1726121707231,6.6368,135.61,135.57,16.5957]
[1726121710544,6.6372,135.6,135.56,6.1967]
[1726121711041,33.11135359,135.65,135.56,6.1967]
[1726121711345,6.6371,135.6,135.56,6.1967]
[1726121711517,6.6367,135.61,135.56,14.310818]
[1726121712543,6.6362,135.62,135.57,6.6384]
[1726121712922,6.6352,135.64,135.59,6.6375]
[1726121714143,6.6357,135.63,135.59,6.6375]
[1726121715726,6.6357,135.63,135.58,6.638]
[1726121715935,6.6363,135.62,135.57,23.2342]
[1726121716821,6.6367,135.61,135.57,23.2342]
[1726121718026,73.47443759,135.66,135.57,23.2342]
[1726121718225,6.6361,135.62,135.57,23.2342]
[1726121719227,6.6367,135.61,135.57,23.2342]
[1726121719429,6.6367,135.61,135.57,16.5957]
[1726121720755,6.6377,135.59,135.56,6.1967]
[1726121720965,6.6377,135.59,135.55,0.2663479]
[1726121721824,6.6377,135.59,135.55,6.9059479]
[1726121722026,6.6372,135.6,135.55,6.9059479]
[1726121728546,6.6372,135.6,135.55,8.3811074]
[1726121728734,6.6372,135.6,135.55,8.3811072]
[1726121730255,6.6372,135.6,135.55,6.9059479]
[1726121731129,6.6372,135.6,135.55,8.3811082]
[1726121731839,6.6372,135.6,135.56,6.6391]
[1726121734751,16.5933,135.63,135.56,6.6391]
[1726121734951,6.6367,135.61,135.57,6.6384]
[1726121735533,6.6363,135.62,135.57,6.6384]
[1726121736134,6.6357,135.63,135.58,6.638]
[1726121737160,6.6362,135.62,135.58,6.638]
[1726121742648,52.63950907,135.66,135.56,23.2358]
[1726121742649,50.0,135.65,135.56,23.2358]
[1726121742855,43.776884,135.64,135.56,16.5968]
[1726121743736,76.8891593,135.64,135.56,16.5968]
[1726121744258,6.6371,135.6,135.56,16.5968]
[1726121758182,6.6366,135.62,135.56,16.5968]
[1726121758347,6.6366,135.62,135.57,6.6384]
[1726121758541,6.6367,135.61,135.57,6.6384]
[1726121759073,6.6367,135.61,135.56,23.2358]
[1726121759779,6.6373,135.6,135.56,23.2358]
[1726121763261,6.6367,135.61,135.56,23.2358]
[1726121767571,59.89861499,135.64,135.55,0.2663479]
[1726121767975,6.6372,135.6,135.55,6.9057479]
[1726121771659,6.6372,135.6,135.56,6.639]
[1726121779962,6.6372,135.6,135.55,6.9059479]
[1726121787688,6.6381,135.58,135.55,0.2663479]
[1726121788875,6.6382,135.58,135.55,0.2663479]
[1726121789089,23.776884,135.6,135.55,0.2663479]
[1726121789406,6.6387,135.57,135.55,0.2663479]
[1726121790188,6.6377,135.59,135.55,0.2663479]
[1726121790487,6.6372,135.6,135.55,6.9058479]
[1726121791184,6.6367,135.61,135.56,6.6389]
[1726121794898,6.6372,135.6,135.56,6.6389]
[1726121799803,6.6377,135.59,135.55,6.9058479]
[1726121800671,23.776884,135.6,135.55,0.2663479]
[1726121801394,6.6386,135.57,135.55,0.2663479]
[1726121803101,6.6391,135.56,135.55,0.2663479]
[1726121803591,30.415984,135.56,135.55,0.2663479]
[1726121814303,37.058084,135.56,135.55,0.2663479]
[1726121815200,6.6391,135.56,135.55,0.2663479]
[1726121819907,30.415984,135.56,135.55,0.2663479]
[1726121821909,6.6391,135.56,135.55,0.2663479]
[1726121824007,30.415984,135.56,135.55,0.2663479]
[1726121825616,6.6391,135.56,135.55,0.2663479]
[1726121831916,80.415984,135.56,135.55,4.79e-05]
[1726121832092,80.415984,135.56,135.51,0.2663479]
[1726121832093,6.641,135.52,135.51,0.2663479]
[1726121836706,30.417884,135.52,135.51,0.2663479]
[1726121837809,6.641,135.52,135.51,0.2663479]
[1726121838017,49.7915,135.57,135.51,0.2663479]
[1726121838018,31.7623,135.57,135.51,0.2663479]
[1726121838225,34.81180186,135.57,135.51,0.2663479]
[1726121838608,6.6406,135.53,135.51,0.2663479]
[1726121841018,50.0,135.56,135.51,0.2663479]
[1726121841019,6.641,135.52,135.51,0.2663479]
[1726121849513,20.0,135.52,135.51,0.2663479]
[1726121849717,6.641,135.53,135.51,0.2663479]
[1726121849934,6.641,135.52,135.51,0.2663479]
[1726121850120,6.6406,135.53,135.51,0.2663479]
[1726121852819,6.641,135.52,135.51,0.2663479]
[1726121872928,30.417884,135.52,135.51,0.2663479]
[1726121873126,6.641,135.52,135.51,0.2663479]
[1726121873341,30.417884,135.52,135.51,0.2663479]
[1726121873739,38.13235275,135.52,135.51,0.2663479]
[1726121873922,14.35546875,135.52,135.51,0.2663479]
[1726121879827,38.13235275,135.52,135.51,0.2663479]
[1726121880136,58.13235275,135.52,135.51,0.2663479]
[1726121880332,91.266733,135.52,135.51,0.2663479]
[1726121881234,141.266733,135.52,135.51,0.2663479]
[1726121881440,141.266733,135.52,135.47,0.2663479]
[1726121881441,6.643,135.48,135.47,0.2663479]
[1726121885060,30.419884,135.48,135.47,0.2663479]
[1726121885356,6.645,135.44,135.43,0.2663479]
[1726121886541,73.776884,135.48,135.43,0.2663479]
[1726121886542,6.6445,135.45,135.43,0.2663479]
[1726121887448,6.645,135.44,135.43,0.2663479]
[1726121897960,7.69976897,135.46,135.43,0.2663479]
[1726121898152,14.34386897,135.46,135.43,0.2663479]
[1726121898361,6.6445,135.45,135.43,0.2663479]
[1726121900969,6.645,135.44,135.43,0.2663479]
[1726121932275,7.69976897,135.46,135.39,32.7698479]
[1726121932276,87.4408071,135.4,135.39,32.7698479]
[1726121940607,87.4408071,135.4,135.39,0.2663479]
[1726121941608,94.0877071,135.4,135.39,0.2663479]
[1726121942603,87.4408071,135.4,135.39,0.2663479]
[1726121943286,94.0877071,135.4,135.39,0.2663479]
[1726121946387,117.8645911,135.4,135.39,0.2663479]
[1726121946724,161.53502166,135.4,135.39,0.2663479]
[1726121947403,161.53541569,135.4,135.39,0.2663479]
[1726121947797,145.5585466,135.4,135.39,0.2663479]
[1726121956916,121.7816626,135.4,135.39,0.2663479]
[1726121958812,95.1347626,135.4,135.39,0.2663479]
[1726121959011,94.0877071,135.4,135.39,0.2663479]
[1726121961516,125.55504792,135.4,135.39,0.2663479]
[1726121973227,101.77816392,135.4,135.39,0.2663479]
[1726121974599,94.0877071,135.4,135.39,0.2663479]
[1726121974898,87.4408071,135.4,135.39,0.2663479]
[1726121975416,94.0877071,135.4,135.39,0.2663479]
[1726121976117,145.59498432,135.4,135.39,0.2663479]
[1726121985330,161.57152186,135.4,135.39,0.2663479]
[1726121987925,145.59498432,135.4,135.39,0.2663479]
[1726121988140,161.5708458,135.4,135.39,0.2663479]
[1726121996620,178.75776622,135.4,135.39,0.2663479]
[1726122002447,6.6489,135.36,135.35,0.2663479]
[1726122022458,30.425784,135.36,135.35,0.2663479]
[1726122022965,38.15556897,135.36,135.35,0.2663479]
[1726122023145,38.15556897,135.36,135.31,16.1121479]
[1726122023146,6.6509,135.32,135.31,0.2663479]
[1726122024042,47.48638676,135.36,135.31,0.2663479]
[1726122024257,20.0,135.35,135.31,0.2663479]
[1726122024456,7.72978497,135.36,135.31,0.2663479]
[1726122024846,6.6495,135.35,135.31,0.2663479]
[1726122025247,7.72978497,135.36,135.31,0.2663479]
[1726122025868,6.6504,135.33,135.31,0.2663479]
[1726122026362,6.6499,135.34,135.31,0.2663479]
[1726122028960,7.72978497,135.36,135.31,0.2663479]
[1726122029162,6.6498,135.35,135.31,0.2663479]
[1726122029950,6.65,135.34,135.31,0.2663479]
[1726122031167,6.6495,135.35,135.31,0.2663479]
[1726122031738,7.72978497,135.36,135.31,0.2663479]
[1726122031739,14.37878497,135.36,135.31,22.3596479]
[1726122031939,6.649,135.36,135.31,22.3596479]
[1726122037646,6.6495,135.35,135.31,22.3596479]
[1726122039347,6.6489,135.36,135.32,6.6508]
[1726122039542,6.6489,135.36,135.31,22.3596479]
[1726122039745,7.72783527,135.38,135.32,13.2814]
[1726122039746,6.6484,135.37,135.32,13.2814]
[1726122042262,7.72783527,135.38,135.32,6.6307]
[1726122052285,6.6487,135.37,135.32,13.2815]
[1726122052493,6.65,135.34,135.32,6.6307]
[1726122052778,6.6504,135.33,135.31,15.7084479]
[1726122053090,6.65,135.34,135.31,15.7084479]
[1726122053977,6.6504,135.33,135.31,15.7084479]
[1726122054861,31.49909342,135.36,135.31,0.2663479]
[1726122055462,47.47896445,135.36,135.31,0.2663479]
[1726122055683,6.6504,135.33,135.31,0.2663479]
[1726122059281,6.6509,135.32,135.31,0.2663479]
[1726122061773,6.6504,135.33,135.31,0.2663479]
[1726122062982,6.6509,135.32,135.31,0.2663479]
[1726122063184,6.6505,135.33,135.31,0.2663479]
[1726122064674,6.6509,135.32,135.31,0.2663479]
[1726122067680,14.37637219,135.33,135.31,0.2663479]
[1726122069699,7.72597219,135.33,135.31,0.2663479]
[1726122070196,14.37647219,135.33,135.31,0.2663479]
[1726122070985,14.37647219,135.33,135.31,0.2068139]
[1726122072891,6.6509,135.32,135.31,0.2068139]
[1726122073286,30.427784,135.32,135.31,0.2068139]
[1726122074896,6.6509,135.32,135.31,0.2068139]
[1726122077403,30.427784,135.32,135.31,0.2068139]
[1726122083694,6.6509,135.32,135.31,0.2068139]
[1726122085172,14.37647219,135.33,135.31,0.2068139]
[1726122087009,6.6509,135.32,135.31,0.2068139]
[1726122093105,30.427784,135.32,135.31,0.2068139]
[1726122093311,6.6528,135.28,135.27,0.2663479]
[1726122093683,6.6524,135.29,135.27,0.2663479]
[1726122095291,6.6528,135.28,135.27,0.2663479]
[1726122096706,30.429684,135.28,135.27,0.2663479]
[1726122097285,6.6528,135.28,135.27,0.2663479]
[1726122100624,6.6528,135.28,135.23,12.7804]
[1726122100625,6.6553,135.23,135.22,0.2663479]
[1726122102004,6.6572,135.19,135.14,0.2663479]
[1726122103010,6.6568,135.2,135.14,1.74594773]
[1726122103189,6.6572,135.19,135.14,6.9260479]
[1726122103507,6.6567,135.21,135.15,6.6592]
[1726122103811,6.6569,135.2,135.14,6.9260479]
[1726122104323,6.6569,135.2,135.15,6.6591]
[1726122105597,6.6569,135.2,135.14,0.2663479]
[1726122105598,15.8844,135.17,135.14,0.2663479]
[1726122106206,6.6592,135.15,135.14,0.2663479]
[1726122106902,15.8844,135.17,135.14,0.2663479]
[1726122106903,6.6587,135.16,135.14,0.2663479]
[1726122107415,6.6587,135.16,135.14,0.1913451]
[1726122107608,15.8844,135.17,135.14,0.1913451]
[1726122107609,22.5427,135.17,135.14,0.1913451]
[1726122107787,6.6583,135.17,135.14,0.1913451]
[1726122109400,6.6591,135.19,135.14,0.1913451]
[1726122109610,20.0,135.18,135.14,0.1913451]
[1726122110299,6.6582,135.17,135.14,0.1913451]
[1726122110503,6.6587,135.16,135.14,0.1913451]
[1726122111199,6.6591,135.19,135.14,0.1913451]
[1726122112311,6.6587,135.17,135.14,0.1913451]
[1726122113515,6.6588,135.16,135.14,0.1913451]
[1726122114994,6.6592,135.15,135.14,0.1913451]
[1726122120420,6.6592,135.15,135.11,0.2938423]
[1726122120421,6.6607,135.12,135.11,0.2938423]
[1726122121700,30.437584,135.12,135.11,0.2938423]
[1726122124317,6.6607,135.12,135.11,0.2938423]
[1726122125021,14.38817365,135.12,135.11,0.2938423]
[1726122126898,6.6607,135.12,135.11,0.2938423]
[1726122138927,7.72412396,135.14,135.11,0.2938423]
[1726122139124,16.1184,135.16,135.11,0.2938423]
[1726122139322,6.6598,135.14,135.11,0.2938423]
[1726122139712,6.6593,135.15,135.11,0.2938423]
[1726122140611,6.6599,135.14,135.11,0.2938423]
[1726122141933,6.6593,135.15,135.11,0.2938423]
[1726122142508,6.6598,135.14,135.11,0.2938423]
[1726122145430,6.6593,135.15,135.11,0.2938423]
[1726122150725,6.6599,135.14,135.11,0.2938423]
[1726122158246,6.6593,135.15,135.11,0.2938423]
[1726122158845,6.6597,135.14,135.11,0.2938423]
[1726122159047,6.6593,135.15,135.11,0.2938423]
[1726122159539,6.6598,135.14,135.11,0.2938423]
[1726122160343,6.6593,135.15,135.11,0.2938423]
[1726122160950,6.6598,135.14,135.11,0.2938423]
[1726122163046,6.6593,135.15,135.11,0.2938423]
[1726122164228,6.6599,135.14,135.11,0.2938423]
[1726122168150,6.6599,135.14,135.11,0.2321997]
[1726122169856,7.72504679,135.16,135.11,0.2321997]
[1726122170047,6.6607,135.12,135.11,0.2321997]
[1726122170839,6.6603,135.13,135.11,0.2321997]
[1726122172752,6.6607,135.12,135.11,0.2321997]
[1726122177942,6.6603,135.13,135.11,0.2321997]
[1726122179665,6.6598,135.14,135.11,0.2321997]
[1726122180678,7.72692208,135.15,135.11,0.2321997]
[1726122181048,6.6592,135.15,135.11,0.2321997]
[1726122181570,14.38487916,135.16,135.11,6.8931997]
[1726122182652,6.6593,135.15,135.11,0.2321997]
[1726122190875,6.6593,135.15,135.11,6.8932997]
[1726122192678,6.6593,135.15,135.11,8.3732136]
[1726122193682,6.6593,135.15,135.11,6.8932997]
[1726122197877,6.6593,135.15,135.11,0.2321997]
[1726122201276,6.6598,135.14,135.11,0.2321997]
[1726122206460,7.72607916,135.16,135.11,0.2321997]
[1726122206779,6.6602,135.13,135.11,0.2321997]
[1726122220899,7.72607916,135.16,135.11,0.2321997]
[1726122222415,6.6598,135.14,135.11,0.2321997]
[1726122226686,6.6598,135.14,135.07,23.776884]
[1726122228312,6.6598,135.14,135.09,6.6621]
[1726122230422,7.72607916,135.16,135.07,23.3203]
[1726122230423,6.6607,135.12,135.07,23.3203]
[1726122231405,6.6632,135.07,135.04,0.2613171]
[1726122231609,15.4292,135.12,135.04,0.2613171]
[1726122231921,20.0,135.11,135.04,0.2613171]
[1726122232224,6.6627,135.08,135.04,0.2613171]
[1726122233401,20.0,135.11,135.04,0.2613171]
[1726122233402,6.6622,135.09,135.04,0.2613171]
[1726122233593,20.0,135.11,135.05,6.664]
[1726122233791,15.4292,135.12,135.05,6.664]
[1726122234510,6.6617,135.1,135.04,23.5875171]
[1726122235300,15.4292,135.12,135.04,23.5875171]
[1726122235301,6.6623,135.09,135.04,23.5875171]
[1726122237400,6.6623,135.09,135.04,16.9229171]
[1726122237599,6.6633,135.07,135.04,0.2613171]
[1726122237800,6.6627,135.08,135.04,0.2613171]
[1726122240107,6.6632,135.07,135.04,0.2613171]
[1726122240294,6.6627,135.08,135.04,0.2613171]
[1726122240521,6.6627,135.08,135.04,1.74202242]
[1726122240711,6.6622,135.09,135.04,0.2613171]
[1726122241034,6.6622,135.09,135.04,1.74187944]
[1726122241217,15.4292,135.12,135.04,0.2613171]
[1726122241413,15.4292,135.12,135.04,24.0382011]
[1726122241620,6.6622,135.09,135.04,30.7028011]
[1726122242497,6.6622,135.09,135.04,6.9259171]
[1726122242700,15.4292,135.12,135.04,6.9259171]
[1726122242701,6.6628,135.08,135.04,0.2613171]
[1726122243221,6.6632,135.07,135.04,0.2613171]
[1726122244519,6.6627,135.08,135.04,0.2613171]
[1726122246500,6.6632,135.07,135.04,0.2613171]
[1726122246901,6.6627,135.08,135.04,0.2613171]
[1726122250804,6.6632,135.07,135.04,0.2613171]
[1726122251136,6.6641,135.05,135.04,0.2613171]
[1726122251728,14.37804508,135.05,135.04,0.2613171]
[1726122253424,34.37804508,135.05,135.04,0.2613171]
[1726122256736,14.37804508,135.05,135.04,0.2613171]
[1726122259748,38.15492908,135.05,135.04,0.2613171]
[1726122260749,54.81532908,135.05,135.04,0.2613171]
[1726122262024,57.78691808,135.05,135.04,0.2613171]
[1726122262445,59.07816249,135.05,135.04,0.2613171]
[1726122262663,79.07816249,135.05,135.04,0.2613171]
[1726122265050,55.30127849,135.05,135.04,0.2613171]
[1726122270152,10.68553408,135.05,135.04,0.2613171]
[1726122270342,6.6632,135.07,135.04,0.2613171]
[1726122270535,6.6638,135.06,135.04,0.2613171]
[1726122271256,6.6641,135.05,135.04,0.2613171]
[1726122275743,6.6637,135.06,135.04,0.2613171]
[1726122276473,6.6641,135.05,135.04,0.2613171]
[1726122282561,6.6638,135.06,135.04,0.2613171]
[1726122286432,6.6641,135.05,135.04,0.2613171]
[1726122296168,6.6638,135.06,135.04,0.2613171]
[1726122298984,6.6641,135.05,135.04,0.2613171]
[1726122301176,14.37626048,135.05,135.04,0.2613171]
[1726122301552,21.04376048,135.05,135.04,0.2613171]
[1726122303591,6.6641,135.05,135.04,0.2613171]
[1726122312468,30.440984,135.05,135.04,0.2613171]
[1726122313793,6.6641,135.05,135.04,0.2613171]
[1726122314174,14.37273959,135.05,135.04,0.2613171]
[1726122316777,38.14962359,135.05,135.04,0.2613171]
[1726122316982,54.15000792,135.05,135.04,0.2613171]
[1726122318379,38.14962359,135.05,135.04,0.2613171]
[1726122327917,44.81762359,135.05,135.04,0.2613171]
[1726122328709,64.81762359,135.05,135.04,0.2613171]
[1726122328884,80.81190149,135.05,135.04,0.2613171]
[1726122329085,64.81762359,135.05,135.04,0.2613171]
[1726122330288,80.8118566,135.05,135.04,0.2613171]
[1726122332800,64.81762359,135.05,135.04,0.2613171]
[1726122334107,80.80809845,135.05,135.04,0.2613171]
[1726122335806,64.81762359,135.05,135.04,0.2613171]
[1726122336297,80.80741395,135.05,135.04,0.2613171]
[1726122339384,64.81762359,135.05,135.04,0.2613171]
[1726122342318,80.79249267,135.05,135.04,0.2613171]
[1726122346196,57.01560867,135.05,135.04,0.2613171]
[1726122347621,21.04073959,135.05,135.04,0.2613171]
[1726122347923,14.37273959,135.05,135.04,0.2613171]
[1726122355312,6.6638,135.06,135.04,0.2613171]
[1726122357309,6.6641,135.05,135.04,0.2613171]
[1726122364235,6.6638,135.06,135.04,0.2613171]
[1726122364733,6.6641,135.05,135.04,0.2613171]
[1726122384850,14.37409345,135.06,135.04,0.2613171]
[1726122385025,6.6637,135.06,135.04,0.2613171]
[1726122389849,23.6826565,135.09,135.04,0.2613171]
[1726122390157,1.29069231,135.1,135.04,0.2613171]
[1726122390333,21.29069231,135.1,135.04,0.2613171]
[1726122390647,6.6631,135.08,135.04,0.2613171]
[1726122391844,6.6632,135.07,135.04,0.2613171]
[1726122393251,21.29069231,135.1,135.04,31.55824466]
[1726122393252,1.29069231,135.1,135.04,31.55824466]
[1726122393553,15.6489,135.12,135.05,1.4804327]
[1726122393853,15.6489,135.12,135.04,31.55824466]
[1726122394356,6.6618,135.1,135.06,6.6635]
[1726122395629,6.6618,135.1,135.05,6.6641]
[1726122397158,6.6618,135.1,135.06,6.6637]
[1726122398560,6.6613,135.11,135.06,6.6637]
[1726122400240,6.6618,135.1,135.06,6.6637]
[1726122400745,6.6613,135.11,135.06,6.6637]
[1726122401861,6.6608,135.12,135.07,6.6631]
[1726122403444,6.6608,135.12,135.07,29.2449]
[1726122403961,7.70436005,135.14,135.06,16.6585]
[1726122404160,6.6622,135.1,135.06,16.6585]
[1726122404539,6.6623,135.09,135.05,6.6641]
[1726122404957,6.6627,135.08,135.04,22.8431171]
[1726122405561,6.6627,135.08,135.04,0.2613171]
[1726122405848,7.6995355,135.12,135.04,0.2613171]
[1726122405849,16.4277,135.11,135.04,0.2613171]
[1726122406249,32.39369539,135.11,135.04,0.2613171]
[1726122407262,6.6637,135.06,135.04,0.2613171]
[1726122407665,6.6632,135.07,135.04,0.2613171]
[1726122407849,32.39369539,135.11,135.04,0.2613171]
[1726122408056,6.6641,135.05,135.04,0.2613171]
[1726122416376,6.6641,135.05,135.04,0.2613171]
[1726122422687,6.6641,135.05,135.0,0.2613171]
[1726122422688,6.6661,135.01,135.0,0.2613171]
[1726122430690,15.8219,135.03,135.0,0.2613171]
[1726122430891,22.4874,135.03,135.0,0.2613171]
[1726122431073,6.6655,135.03,135.0,0.2613171]
[1726122431269,6.6656,135.02,135.0,0.2613171]
[1726122431703,6.6652,135.03,135.0,0.2613171]
[1726122431991,6.6647,135.04,135.0,0.2613171]
[1726122432496,6.6653,135.03,135.0,0.2613171]
[1726122433203,1.29122005,135.05,135.0,0.2613171]
[1726122433204,6.6661,135.01,135.0,0.2613171]
[1726122448411,1.2912632,135.02,135.0,0.2613171]
[1726122448691,50.0,135.09,135.0,0.2613171]
[1726122448896,51.29083761,135.09,135.0,0.2613171]
[1726122449095,67.18191819,135.09,135.0,0.2613171]
[1726122449481,81.81794619,135.09,135.0,0.2613171]
[1726122449806,50.0,135.07,135.0,0.2613171]
[1726122450692,43.776884,135.06,135.0,0.2613171]
[1726122450906,65.4017,135.05,135.0,0.2613171]
[1726122451071,15.4017,135.05,135.0,0.2613171]
[1726122451274,6.6654,135.03,135.0,0.2613171]
[1726122451701,15.4017,135.05,135.0,6.9278171]
[1726122452002,6.6647,135.04,135.0,0.2613171]
[1726122453381,6.6653,135.03,135.0,0.2613171]
[1726122453584,6.6656,135.02,135.0,0.2613171]
[1726122455389,6.6652,135.03,135.0,0.2613171]
[1726122455592,14.40481885,135.03,135.0,0.2613171]
[1726122456477,7.73961885,135.03,135.0,0.2613171]
[1726122458000,7.73961885,135.03,135.0,6.9279171]
[1726122458882,7.73961885,135.03,135.0,0.2613171]
[1726122461105,7.73961885,135.03,135.0,6.9279171]
[1726122464002,7.73961885,135.03,135.01,6.666]
[1726122464212,21.9696,135.08,135.03,6.665]
[1726122464395,6.6632,135.07,135.02,23.3289]
[1726122467284,6.6638,135.06,135.02,23.3289]
[1726122467590,6.6638,135.06,135.02,16.6634]
[1726122467796,6.6643,135.05,135.0,13.3902171]
[1726122469694,6.6643,135.05,135.01,6.6661]
[1726122471995,7.73265936,135.08,135.0,6.7241171]
[1726122471996,6.6647,135.04,135.0,0.2613171]
[1726122473616,6.6647,135.04,135.0,6.9279171]
[1726122474810,6.6647,135.04,135.0,0.2613171]
[1726122475198,14.40253955,135.05,135.0,6.9277171]
[1726122478323,32.8896,135.09,135.01,1.48108379]
[1726122478496,6.6632,135.07,135.02,8.14638872]
[1726122478893,7.7340329,135.08,135.04,14.63602756]
[1726122479114,16.2332,135.12,135.04,14.63602756]
[1726122479427,14.39336851,135.11,135.06,6.6632]
[1726122480697,14.39336851,135.11,135.06,8.14365906]
[1726122481514,7.73176851,135.11,135.07,8.14318589]
[1726122482003,7.73176851,135.11,135.07,6.6628]
[1726122482326,14.39296851,135.11,135.06,6.6636]
[1726122483017,6.662,135.1,135.05,23.3234]
[1726122483401,14.39306851,135.11,135.05,23.3234]
[1726122483995,6.6617,135.1,135.05,23.3234]
[1726122484615,6.6623,135.09,135.05,16.6594]
[1726122488311,6.6627,135.08,135.03,6.6651]
[1726122489723,6.6632,135.07,135.02,23.3295]
[1726122494120,7.72891931,135.08,135.02,23.3295]
[1726122494121,14.39171931,135.08,135.03,6.6651]
[1726122494424,14.39171931,135.08,135.02,16.6639]
[1726122494425,6.6628,135.08,135.04,6.6646]
[1726122496031,6.6628,135.08,135.02,16.6639]
[1726122496725,6.6622,135.09,135.03,39.89365507]
[1726122496929,29.47414964,135.1,135.05,6.664]
[1726122497122,21.7453,135.1,135.06,1.48043971]
[1726122497532,21.7453,135.1,135.05,6.664]
[1726122500336,21.7453,135.1,135.06,6.6636]
[1726122500631,14.38957534,135.11,135.06,6.6636]
[1726122500833,14.38957534,135.11,135.07,8.1434588]
[1726122501019,14.38957534,135.11,135.08,1.48027078]
[1726122501421,14.38957534,135.11,135.07,6.6631]
[1726122502338,6.6613,135.11,135.07,6.6631]
[1726122504337,6.6613,135.11,135.06,30.440484]
[1726122508115,6.6622,135.09,135.05,6.6641]
[1726122509241,6.6618,135.1,135.05,6.6641]
[1726122510035,39.0574171,135.14,135.05,6.6641]
[1726122510245,6.6627,135.08,135.04,23.3255]
[1726122510638,6.6627,135.08,135.04,16.6609]
[1726122511641,6.6632,135.07,135.03,6.665]
[1726122512229,6.6632,135.07,135.01,23.3304]
[1726122514231,6.6632,135.07,135.02,6.6656]
[1726122514653,6.6637,135.06,135.01,23.3309]
[1726122515356,6.6637,135.06,135.02,6.6656]
[1726122516848,6.6633,135.07,135.02,6.6656]
[1726122521647,6.6627,135.08,135.03,30.441884]
[1726122521852,7.73149481,135.09,135.04,1.48067663]
[1726122522047,7.73149481,135.09,135.05,1.48057818]
[1726122522048,14.39409481,135.09,135.05,1.48057818]
[1726122522435,14.39409481,135.09,135.03,40.438884]
[1726122523335,14.39409481,135.09,135.05,6.6641]
[1726122525036,6.6628,135.08,135.03,16.662]
[1726122525368,6.6628,135.08,135.04,30.441484]
[1726122531763,14.39379481,135.09,135.05,6.6641]
[1726122531943,7.73149481,135.09,135.05,6.6641]
[1726122533346,6.6612,135.11,135.06,6.6635]
[1726122539168,6.6608,135.12,135.07,30.439984]
[1726122539467,6.6613,135.11,135.07,30.439984]
[1726122540482,6.6613,135.11,135.06,30.440384]
[1726122540769,6.6637,135.06,135.0,6.9275171]
[1726122541070,35.90614693,135.1,135.01,6.666]
[1726122541562,20.0,135.1,135.02,6.6655]
[1726122542170,6.6627,135.08,135.03,30.441984]
[1726122542549,6.6622,135.09,135.05,23.776884]
[1726122542882,6.6622,135.09,135.05,30.440984]
[1726122543255,22.3734,135.11,135.05,30.440984]
[1726122543479,22.3734,135.11,135.03,31.29792756]
[1726122543480,22.3734,135.11,135.06,6.6637]
[1726122543655,22.3734,135.11,135.07,1.48032164]
[1726122544083,22.3734,135.11,135.06,6.6637]